[Event "Romanian Team Blitz Open 2022"]
[Site "Sebes"]
[Date "2022.12.04"]
[Round "2.26"]
[White "Daianu, Cristian-Clement"]
[Black "Tariceanu, Victor"]
[Result "1/2-1/2"]
[ECO "B04"]
[WhiteElo "2189"]
[BlackElo "1720"]
[Annotator "TA"]
[PlyCount "143"]
[EventDate "2022.12.04"]
[EventType "blitz"]
[EventCountry "ROU"]
[SourceTitle "playchess.com"]
[Source "ChessBase"]
[SourceQuality "1"]
[TimeControl "180+2"]

{[%evp 13,143,36,45,-35,-36,-45,-36,-42,-30,-26,33,43,38,27,92,84,114,0,9,-28,0,-71,78,0,0,0,0,-28,-46,-36,0,-43,0,-48,-31,-70,68,17,68,41,114,31,9,0,120,97,116,50,160,-199,-198,-199,-197,-189,-180,-290,-100,-405,-383,-420,-407,-400,-271,-254,-247,-234,-239,-221,-221,-306,-19,-19,-19,-26,-27,-47,-34,-45,-11,-122,-15,-66,0,0,0,-87,-12,-415,-425,-394,-378,-918,-858,-1471,-1557,-1385,-1348,-1368,-1198,-1162,-1104,-988,-1033,-792,-129,-132,-138,-212,-80,-86,-8,-8,-8,-8,-8,-8,0,-8,-8,-8,-8,-8,0,0,0,0,0,0,0,0,0,0]} 1. e4 {[%emt 0:00:02]} Nf6 {[%emt 0:00:01]} 2. e5 {[%emt 0:03:04]} Nd5 3. d4 {[%emt 0:00:00]} d6 {[%emt 0:00:01]} 4. Nf3 {[%emt 0:00:00]} g6 {[%emt 0:00:01]} 5. Bc4 {[%emt 0:00:00]} Nb6 {[%emt 0:00:00]} 6. Bb3 {[%emt 0:00:00]} Bg7 {[%emt 0:00:02]} 7. Ng5 {[%emt 0:00:00]} d5 {[%emt 0:00:09]} 8. e6 {[%emt 0:00:00] B04: Alekhine's Defence: 4 Nf3.} (8. f4 $14) 8... Bxe6 $15 {[%emt 0:00:02]} 9. Nxe6 {[%emt 0:00:00]} fxe6 {[%emt 0:00:01]} 10. O-O {[%emt 0:00:00] [#] Black is slightly better.} O-O $146 {[%emt 0:00:02][%cal Oc7c5]} ({Predecessor:} 10... Nc6 11. c3 Qd6 12. f4 O-O-O 13. a4 Nd7 14. Qe2 g5 15. Na3 a6 16. fxg5 e5 17. dxe5 Bxe5 {½-½ (39) Omidi,A (2415)-Manafov,V (2240) Abu Dhabi 2017}) 11. c3 {[%emt 0:00:00]} c6 {[%emt 0:00:06]} (11... Qd6 $11) 12. Qe2 $14 {[%emt 0:00:00]} Qd6 {[%emt 0:00:06]} 13. Re1 {[%emt 0:00:00]} e5 {[%emt 0:00:13]} (13... N8d7 $11) 14. dxe5 $16 {[%emt 0:00:00]} Qc7 {[%emt 0:00:04]} 15. e6 {[%emt 0:00:00]} (15. f4 $16) 15... Na6 {[%emt 0:00:04]} 16. Bg5 {[%emt 0:00:00]} Nc5 {[%emt 0:00:01]} (16... Rf5 $5 {[%cal Rf5g5]} 17. Be3 c5 $11) 17. Bc2 {[%emt 0:00:00]} (17. Nd2 $11) 17... Bf6 {[%emt 0:00:03]} (17... d4 $1 $17) 18. Bh6 {[%emt 0:00:00]} (18. Be3 $16 Qd6 19. Qg4) 18... Bg7 $11 {[%emt 0:00:04]} 19. Bxg7 {[%emt 0:00:00]} Kxg7 {[%emt 0:00:01]} 20. Nd2 {[%emt 0:00:00]} (20. Qe3 $5 {[%cal Re3c5]} Qd6 21. Nd2 $11) 20... Rf6 {[%emt 0:00:01]} 21. Qg4 {[%emt 0:00:00]} Qd6 {[%emt 0:00:08][%cal Oa8f8]} (21... Qf4 {simplifies} 22. Qxf4 Rxf4 23. Re2 Rd8) 22. Nf3 {[%emt 0:00:00]} Nxe6 {[%emt 0:00:16]} 23. Rad1 {[%emt 0:00:00]} (23. Ne5 $1 $11 {should be considered.}) 23... Raf8 $15 {[%emt 0:00:03]} 24. Rd3 {[%emt 0:00:00]} Nc5 {[%emt 0:00:34]} (24... h5 $15 25. Qg3 Nc4) 25. Rde3 $14 {[%emt 0:00:00][%mdl 1024] White has compensation.} Nc8 {[%emt 0:00:08]} ({Black should play} 25... Re8 $11) 26. h4 {[%emt 0:00:00]} (26. Qh3 $5 {[%cal Rb2b4]}) 26... Kh8 {[%emt 0:00:18]} ({Better is} 26... a5 $14) 27. Re5 {[%emt 0:00:00]} (27. b4 $16 Nd7 28. h5 gxh5 29. Qxh5) 27... Nd7 $36 {[%emt 0:00:20][%mdl 2048] Black has some pressure.} 28. R5e3 {[%emt 0:00:00]} Nc5 {[%emt 0:00:08]} (28... e5 $11 29. Nxe5 Nxe5 30. Rxe5 Rf4) 29. b4 $1 $16 {[%emt 0:00:00]} Nd7 {[%emt 0:00:01][%cal Oa7a5]} 30. R1e2 {[%emt 0:00:00] White is more active.} (30. h5 $1 $16 {[%cal Rh5g6] Black must now prevent hxg6.} gxh5 31. Qh3 (31. Qxh5 Rh6 $14)) 30... b6 {[%emt 0:00:17]} (30... Ndb6 $14) 31. Nd4 $2 {[%emt 0:00:00]} (31. h5 $16 {keeps the pressure on. Hoping for hxg6.} gxh5 32. Qh3 (32. Qxh5 Rh6 $14)) 31... e5 $19 {[%emt 0:00:03][%cal Be7e5,Be5e4][%mdl 32]} 32. Nf3 {[%emt 0:00:05][%cal Rf3e5]} e4 {[%emt 0:00:01]} 33. Ng5 {[%emt 0:00:01]} Ne5 {[%emt 0:00:05]} 34. Qg3 {[%emt 0:00:01]} (34. Qh3 {was the only chance.} Qd7 35. Qxd7 Nxd7 36. b5) 34... h6 $2 {[%emt 0:00:06]} (34... Nc4 $19 35. Nxe4 dxe4 36. Rxe4 Qxg3 37. fxg3 N4d6) 35. Nh3 $2 {[%emt 0:00:01][%mdl 8192]} (35. Nxe4 $17 {is tougher.} dxe4 36. Rxe4) 35... Nc4 {[%emt 0:00:05]} 36. Qxd6 {[%emt 0:00:02]} N8xd6 {[%emt 0:00:03]} 37. Rg3 {[%emt 0:00:01]} Nf5 {[%emt 0:00:08] Pair of Knights!} 38. Rg4 {[%emt 0:00:02]} Ne5 {[%emt 0:00:01]} 39. Rf4 {[%emt 0:00:02]} Nd6 {[%emt 0:00:04]} 40. Rxf6 {[%emt 0:00:02]} Rxf6 {[%emt 0:00:01]} 41. f3 {[%emt 0:00:03][%cal Rf3e4]} Nec4 $2 {[%emt 0:00:13]} ({But not} 41... exf3 42. Rxe5 fxg2 43. Kxg2 $18) (41... Nb5 $19 42. fxe4 Nxc3) 42. fxe4 $11 {[%emt 0:00:02]} dxe4 {[%emt 0:00:04]} 43. Bxe4 {[%emt 0:00:01]} Re6 {[%emt 0:00:01]} 44. Bd3 {[%emt 0:00:04]} Rxe2 {[%emt 0:00:01]} 45. Bxe2 $15 {[%emt 0:00:02][%mdl 4096] Endgame KBN-KNN} Kg7 {[%emt 0:00:03]} 46. Kf2 {[%emt 0:00:01]} (46. Nf2 $11 {keeps the balance.}) 46... Kf6 {[%emt 0:00:01]} (46... Ne4+ $1 $17 47. Ke1 b5) 47. g4 {[%emt 0:00:02]} (47. Bxc4 $11 Nxc4 48. Kf3) 47... g5 {[%emt 0:00:04]} (47... Ne4+ $15 48. Kf3 Ncd6) 48. hxg5+ $11 {[%emt 0:00:04]} hxg5 {[%emt 0:00:00]} 49. Ng1 {[%emt 0:00:06]} (49. Kf3 $11) 49... Ne5 {[%emt 0:00:03]} ({Black should try} 49... Ne4+ $1 $17 50. Kf3 Ncd6) 50. Kg3 $2 {[%emt 0:00:04][%mdl 8192]} (50. Ke3 $1 $11 {and White stays safe.}) 50... Ne4+ $19 {[%emt 0:00:01]} 51. Kg2 {[%emt 0:00:04]} Nxc3 {[%emt 0:00:01]} 52. Bf3 $2 {[%emt 0:00:03]} (52. a3) 52... Nxf3 {[%emt 0:00:02]} 53. Kxf3 {[%emt 0:00:01]} Nxa2 {[%emt 0:00:00] KN-KN} 54. Ke4 {[%emt 0:00:02]} Nxb4 {[%emt 0:00:02] ...a5 is the strong threat.} 55. Ne2 {[%emt 0:00:01]} c5 {[%emt 0:00:02]} 56. Nc3 {[%emt 0:00:02]} Nc6 {[%emt 0:00:03]} 57. Kd5 {[%emt 0:00:04]} Ne7+ {[%emt 0:00:06]} 58. Kd6 {[%emt 0:00:03] [#]} c4 $2 {[%emt 0:00:07]} (58... Nf5+ $1 $19 {and Black stays clearly on top.} 59. Kd5 (59. Kc6 Ne3) 59... Ne3+ 60. Ke4 Nxg4 61. Nd5+ Ke6 62. Nc7+ Kd7) 59. Ne4+ $17 {[%emt 0:00:01]} Kf7 {[%emt 0:00:02]} 60. Nxg5+ {[%emt 0:00:01]} Ke8 {[%emt 0:00:00]} (60... Kg6 $19 61. Nf3 Nc8+ 62. Kd5 c3) 61. Ne4 {[%emt 0:00:03] [#]} b5 {[%emt 0:00:03]} (61... Kf8 $1 $17 {With the idea ...b5.} 62. Nc3 Kf7) 62. Kc5 $11 {[%emt 0:00:01] The position is equal.} a6 {[%emt 0:00:01] aiming for ...Kd7.} 63. Kb6 $1 {[%emt 0:00:05]} Nd5+ {[%emt 0:00:00]} 64. Kxa6 {[%emt 0:00:01]} b4 {[%emt 0:00:01]} (64... c3 {simplifies} 65. Nxc3 Nxc3 66. Ka5 Kf7) 65. Kb5 {[%emt 0:00:02]} c3 {[%emt 0:00:03] ( -> ...c2)} (65... Nc3+ {simplifies} 66. Kxc4 Nxe4 67. Kxb4 Ke7) 66. Nc5 {[%emt 0:00:42]} c2 {[%emt 0:00:06]} 67. Nb3 $1 {[%emt 0:00:01]} Ke7 {[%emt 0:00:07]} (67... Nc3+ {simplifies} 68. Kxb4 Ne2 69. Ka3 c1=Q+) 68. Kc4 {[%emt 0:00:03]} Ne3+ {[%emt 0:00:02]} 69. Kxb4 {[%emt 0:00:02]} Nxg4 {[%emt 0:00:01]} 70. Kc3 Ne3 71. Kd2 {[%emt 0:00:02]} Nc4+ {[%emt 0:00:04]} 72. Kxc2 {[%emt 0:00:01] Black had all chances to win.   Weighted Error Value: White=0.72/Black=0.64} 1/2-1/2

[Event "Romanian Team Blitz Open 2022"]
[Site "Sebes"]
[Date "2022.12.04"]
[Round "2.27"]
[White "Calugareanu, Ioana-Denisa"]
[Black "Vrencian, Lehel"]
[Result "0-1"]
[ECO "A53"]
[WhiteElo "1396"]
[BlackElo "2226"]
[Annotator "TA"]
[PlyCount "76"]
[EventDate "2022.12.04"]
[EventType "blitz"]
[EventCountry "ROU"]
[SourceTitle "playchess.com"]
[Source "ChessBase"]
[SourceQuality "1"]
[TimeControl "180+2"]

{[%evp 9,75,15,12,5,0,13,13,14,8,-16,0,0,0,0,10,-41,-47,-57,-56,-96,-90,-150,-147,-135,-139,-171,-106,-228,-228,-235,-233,-264,-231,-276,-275,-363,-362,-358,-370,-416,-396,-837,-818,-849,-829,-820,-809,-895,-884,-1333,-1309,-1550,-1535,-1364,-927,-1684,-1568,-29987,-29981,-29975,-29967,-29987,-29988,-29990,-29990,-29990,-29989,-29999]} 1. d4 {[%emt 0:00:01]} Nf6 {[%emt 0:00:03]} 2. c4 {[%emt 0:00:04]} d6 {[%emt 0:00:00]} 3. g3 {[%emt 0:00:03]} e5 {[%emt 0:00:02]} 4. Nf3 {[%emt 0:00:04]} e4 {[%emt 0:00:03]} 5. Nfd2 {[%emt 0:00:04]} c6 $1 {[%emt 0:00:02]} 6. Nc3 {[%emt 0:00:04] A53: Old Indian Defence without Nf3.} d5 {[%emt 0:00:02]} 7. Bg2 {[%emt 0:00:05]} Be7 {[%emt 0:00:15]} 8. O-O {[%emt 0:00:06] The position is equal.} O-O {[%emt 0:00:02]} 9. e3 {[%emt 0:00:08] [#]} a6 $146 {[%emt 0:00:04]} ({Predecessor:} 9... Bg4 10. Qb3 Bc8 11. cxd5 cxd5 12. f3 exf3 13. Bxf3 Nc6 14. Nxd5 Na5 15. Nxe7+ Qxe7 {1-0 (34) Vilke,F (1849)-Volf,Z (1784) Chess.com INT 2021}) 10. cxd5 {[%emt 0:00:07]} cxd5 {[%emt 0:00:02]} 11. f3 {[%emt 0:00:06]} exf3 {[%emt 0:00:03]} 12. Bxf3 {[%emt 0:00:01]} (12. Nxf3 $11 Nc6 13. Ne5) 12... Bh3 $15 {[%emt 0:00:03]} 13. Re1 {[%emt 0:00:02]} Nc6 {[%emt 0:00:03]} 14. Qe2 {[%emt 0:00:34]} Re8 {[%emt 0:00:02]} 15. Bg2 {[%emt 0:00:04]} ({White should play} 15. a3) 15... Bxg2 $17 {[%emt 0:02:46]} 16. Qxg2 {[%emt 0:00:01]} Bb4 {[%emt 0:00:00] aiming for ...Nxd4.} 17. Nf3 {[%emt 0:00:11]} Rc8 {[%emt 0:00:00]} (17... Na5 $19 18. Bd2 Nc4) 18. a3 {[%emt 0:00:08] This costs White the game.} (18. Bd2 $17) 18... Bxc3 $19 {[%emt 0:00:00]} 19. bxc3 {[%emt 0:01:47]} Na5 {[%emt 0:00:00]} 20. Rb1 {[%emt 0:00:00]} b5 {[%emt 0:00:00]} 21. Bb2 {[%emt 0:00:00]} Nc4 {[%emt 0:00:00]} 22. Nd2 {[%emt 0:00:00]} Nxb2 {[%emt 0:00:00]} (22... Nxe3 $2 {loses.} 23. Qf2 Nc4 24. Rxe8+ Qxe8 25. Nxc4 bxc4 26. Ba1 $19) (22... Rxe3 $2 {too greedy.} 23. Rxe3 Nxe3 24. Qf3 $19) 23. Rxb2 {[%emt 0:00:00]} Rxc3 {[%emt 0:00:00]} 24. Rb3 {[%emt 0:00:00]} Rc2 {[%emt 0:00:00] [#] ...Ne4 is the strong threat.} 25. Qe2 $2 {[%emt 0:00:00]} (25. Re2) 25... Ne4 {[%emt 0:00:00]} 26. Rd3 {[%emt 0:00:00]} Qa5 {[%emt 0:00:00][%cal Rc2d2]} 27. Rd1 {[%emt 0:00:00]} Nc3 {[%emt 0:00:00]} 28. Rxc3 {[%emt 0:00:00]} Qxc3 {[%emt 0:00:00]} 29. Kf2 {[%emt 0:00:05]} Qxa3 {[%emt 0:00:00]} 30. Qf3 {[%emt 0:00:08]} Qb4 {[%emt 0:00:00]} 31. Qe2 {[%emt 0:00:08]} g6 {[%emt 0:00:00]} 32. h3 {[%emt 0:00:01]} a5 {[%emt 0:00:00]} 33. Rb1 {[%emt 0:00:03]} Qxd2 {[%emt 0:00:00] Black mates.} 34. Qxd2 {[%emt 0:00:05]} Rxd2+ {[%emt 0:00:38]} 35. Ke1 {[%emt 0:00:02]} Rh2 {[%emt 0:00:02]} 36. Rxb5 {[%emt 0:00:02]} Rxe3+ {[%emt 0:00:02]} 37. Kf1 Ra3 {[%emt 0:00:02]} 38. Rxd5 {[%emt 0:00:04]} Ra1# {Weighted Error Value: White=1.00/Black=0.23 (precise)} 0-1

[Event "Romanian Team Blitz Open 2022"]
[Site "Sebes"]
[Date "2022.12.04"]
[Round "2.28"]
[White "Craciun, Sasha-Matei"]
[Black "Dragut, Stefan-Cristian"]
[Result "1-0"]
[ECO "C10"]
[WhiteElo "2001"]
[BlackElo "1217"]
[Annotator "TA"]
[PlyCount "75"]
[EventDate "2022.12.04"]
[EventType "blitz"]
[EventCountry "ROU"]
[SourceTitle "playchess.com"]
[Source "ChessBase"]
[SourceQuality "1"]
[TimeControl "180+2"]

{[%evp 14,75,50,27,23,27,23,29,27,25,27,19,20,18,22,0,0,0,0,0,0,0,0,-19,-19,-8,-1,0,-6,0,10,0,4,0,21,0,9,9,10,0,0,0,12,0,111,111,263,212,440,447,499,454,1775,1728,1722,1722,1733,1720,2110,1940,5585,6275,5701,5693]} 1. e4 {[%emt 0:00:02]} e6 {[%emt 0:00:02]} 2. d4 {[%emt 0:00:02]} d5 {[%emt 0:00:02]} 3. Nc3 {[%emt 0:00:02]} dxe4 {[%emt 0:00:02]} 4. Nxe4 {[%emt 0:00:02]} Bd7 {[%emt 0:00:02]} 5. Bd3 {[%emt 0:00:02]} Bc6 {[%emt 0:00:02]} 6. Nf3 {[%emt 0:00:02]} Nd7 {[%emt 0:00:02]} 7. Qe2 {[%emt 0:00:02]} Ngf6 {[%emt 0:00:02]} 8. Bd2 {[%emt 0:00:02]} Nxe4 {8...Nxe4 scores better than 8...Be7. C10: French with 3 Nc3: Unusual Black 3rd moves and 3...dxe4.} 9. Bxe4 {[%emt 0:00:01]} Bxe4 {[%emt 0:00:04]} 10. Qxe4 {[%emt 0:00:00]} c6 {[%emt 0:00:00] White has an edge.} 11. O-O {[%emt 0:00:08]} Nf6 {[%emt 0:00:02]} 12. Qd3 {[%emt 0:00:01]} Bd6 {[%emt 0:00:01]} 13. Rfe1 {[%emt 0:00:04] [#]} O-O $146 {[%emt 0:00:02]} ({Predecessor:} 13... h6 14. c4 O-O 15. Rad1 Qc7 16. c5 Be7 17. Ne5 Rad8 18. b4 Nd5 19. Qg3 Kh7 {½-½ (41) Schmitz,P-Kneutgen,A (2111) Bergisch Gladbach 2009}) 14. a4 {[%emt 0:00:02]} c5 {[%emt 0:00:05]} 15. dxc5 {[%emt 0:00:09]} Bxc5 {[%emt 0:00:03]} 16. Qb5 $1 {[%emt 0:00:03]} Qb6 {[%emt 0:00:04]} 17. Qxb6 {[%emt 0:00:04]} Bxb6 {[%emt 0:00:01]} 18. Bb4 {[%emt 0:00:01][%cal Oa4a5] [#] a5! is the strong threat.} Rfc8 {[%emt 0:00:06]} 19. c3 {[%emt 0:00:04]} Bc5 {[%emt 0:00:02]} 20. Bxc5 {[%emt 0:00:02]} Rxc5 {[%emt 0:00:01]} 21. Rad1 {[%emt 0:00:02]} Rd5 {[%emt 0:00:01]} 22. Rxd5 {[%emt 0:00:04]} Nxd5 $11 {[%emt 0:00:01][%mdl 4096] Endgame KRN-KRN} 23. Rd1 {[%emt 0:00:01]} g6 {[%emt 0:00:04]} 24. a5 {[%emt 0:00:04]} (24. c4 $5 {[%cal Rc4d5]} Nf6 25. Ne5 $11) 24... b6 {[%emt 0:00:03]} 25. c4 {[%emt 0:00:12]} Nf6 {[%emt 0:00:04]} 26. a6 {[%emt 0:00:05]} Rc8 {[%emt 0:00:02]} 27. b3 {[%emt 0:00:01][%cal Og2g4,Bb2b3,Bb3b4,Bb4b5][%mdl 32]} Kg7 {[%emt 0:00:27]} 28. Ne5 {[%emt 0:00:05]} Rc7 {[%emt 0:00:04]} (28... Rc5 $1 $11 29. f4 Ra5) 29. b4 $16 {[%emt 0:00:16] White is more active.} Ne4 $2 {[%emt 0:00:17] Loses the game.} (29... b5 $16) 30. f3 {[%emt 0:00:01]} Nf6 {[%emt 0:00:04]} (30... Kf6 {was called for.}) 31. Rd8 $18 {[%emt 0:00:01] White is clearly winning.} Nh5 {[%emt 0:00:14]} 32. b5 {[%emt 0:00:03]} f6 {[%emt 0:00:07]} (32... Rc5 $142 33. Nc6 Rxc4 34. Nxa7 Nf4) 33. Rd7+ {[%emt 0:00:03]} Rxd7 {[%emt 0:00:01]} 34. Nxd7 {[%emt 0:00:01]} Nf4 {[%emt 0:00:13] [#]} 35. Nxb6 $1 {[%emt 0:00:05][%mdl 512]} Nd3 {[%emt 0:00:09]} (35... e5 36. Nc8) 36. Nc8 {[%emt 0:00:04]} Ne5 {[%emt 0:00:02]} 37. b6 {[%emt 0:00:01]} axb6 {[%emt 0:00:08]} 38. a7 {[%emt 0:00:01] Weighted Error Value: White=0.07 (flawless) /Black=0.32} 1-0

[Event "Romanian Team Blitz Open 2022"]
[Site "Sebes"]
[Date "2022.12.04"]
[Round "2.29"]
[White "Miron, Toma"]
[Black "Macarie, Maia-Elisabeta"]
[Result "1-0"]
[ECO "A00"]
[WhiteElo "2188"]
[BlackElo "1100"]
[Annotator "TA"]
[PlyCount "99"]
[EventDate "2022.12.04"]
[EventType "blitz"]
[EventCountry "ROU"]
[SourceTitle "playchess.com"]
[Source "ChessBase"]
[SourceQuality "1"]
[TimeControl "180+2"]

{[%evp 9,98,-87,-75,-118,-80,-120,-84,-95,-77,-87,-87,-80,-40,-76,30,-90,-35,-35,-17,-79,-78,-147,-136,-194,-77,-75,-91,-514,-510,-497,-479,-431,-386,-532,-280,-260,-208,-199,-183,-175,-71,-352,-339,-320,-66,-570,-137,-545,-534,-639,-646,-632,-639,-622,-614,-579,-193,-601,-203,-748,-737,-895,-888,-993,-787,-754,0,-1006,-998,-1389,-1060,-1131,-1062,-12833,-12833,-12820,0,0,0,-1328,-1308,-29998,-12835,-29998,-1279,-1262,-1228,-1159,-1154,-29995,29999]} 1. g4 {[%emt 0:00:02]} d5 {[%emt 0:00:01]} 2. Bg2 {[%emt 0:00:02]} Nf6 {[%emt 0:00:02]} 3. h3 {[%emt 0:00:02]} e5 {[%emt 0:00:05]} 4. d3 {[%emt 0:00:05]} Nc6 {[%emt 0:00:03]} 5. c3 {[%emt 0:00:01]} Be6 {[%emt 0:00:02] [#]} 6. e3 $146 {[%emt 0:00:03] A00: Irregular Openings.} ({Predecessor:} 6. Qb3 Rb8 7. Nf3 Be7 8. Ng5 Bd7 9. Nf3 Be6 10. Ng5 Bd7 11. Nf3 {½-½ (11) Fischer,A-Broszeit,J freechess.de 2015}) 6... Bd6 {[%emt 0:00:03]} 7. f4 {[%emt 0:00:06]} e4 {[%emt 0:00:03]} 8. g5 {[%emt 0:00:11] Black is better.} Nd7 {[%emt 0:00:17]} 9. dxe4 {[%emt 0:00:03]} dxe4 {[%emt 0:00:04]} 10. Bxe4 {[%emt 0:00:01]} Nb6 {[%emt 0:00:05]} 11. b3 {[%emt 0:00:04]} f6 {[%emt 0:00:07]} (11... h6 $17 12. h4 Qd7) 12. h4 {[%emt 0:00:09]} (12. Qh5+ $11 Kf8 13. gxf6 (13. Bxh7 $2 fxg5 14. Qg6 Bf7 $19) 13... Qxf6 14. Ne2 (14. Bxh7 $2 Bg8 $19)) 12... Qe7 {[%emt 0:00:12]} (12... Qd7 $17) 13. Qf3 $15 {[%emt 0:00:11]} Bd7 {[%emt 0:00:11]} 14. gxf6 {[%emt 0:00:10]} (14. Qh5+ $11 {keeps the balance.} Kf8 15. Bd3 (15. Bxh7 $2 g6 $19) (15. Nd2 f5 $17)) 14... gxf6 $17 {[%emt 0:00:05]} 15. Ne2 {[%emt 0:00:05] [#]} (15. a4 $142 a5 16. Ne2) 15... O-O-O $1 {[%emt 0:00:05]} 16. Bb2 {[%emt 0:00:03]} (16. Rg1 $17) 16... Rde8 {[%emt 0:00:04]} (16... Bc5 $19 {aiming for ...Rhg8.} 17. Ng3 Kb8) 17. Nd2 {[%emt 0:00:17]} f5 {[%emt 0:00:03]} 18. Bxc6 {[%emt 0:00:06][%mdl 8192]} (18. Bd3 $17) 18... Bxc6 $19 {[%emt 0:00:02]} 19. e4 {[%emt 0:00:02]} fxe4 {[%emt 0:00:04]} (19... Bxe4 $2 20. Nxe4 Qxe4 21. Qxe4 Rxe4 22. Bc1 $19) 20. Qh3+ {[%emt 0:00:05]} Kb8 {[%emt 0:00:03]} 21. c4 {[%emt 0:00:08] Prevents e3.} Rhg8 {[%emt 0:00:06] ...e3 is the strong threat.} 22. Qe3 {[%emt 0:00:13]} Bc5 {[%emt 0:00:06]} 23. Nd4 {[%emt 0:00:06]} Bd7 $36 {[%emt 0:00:21][%mdl 2048] And now ...Bg4 would win. Black is really pushing.} 24. O-O-O {[%emt 0:00:06]} Ba3 {[%emt 0:00:05]} (24... Nc8 $19 {White must now prevent ...Nd6.} 25. Bc3 Nd6) 25. Qc3 $2 {[%emt 0:00:14][%mdl 8192]} ({Wrong is} 25. Bxa3 $2 Qxa3+ 26. Kc2 Rg2 $19) (25. Kb1 $17) 25... e3 {[%emt 0:00:05]} 26. N2f3 {[%emt 0:00:02]} Bg4 $2 {[%emt 0:00:09]} ({Better is} 26... Rg2 $19 27. Nc2 Bxb2+ 28. Kxb2 Qe4) 27. Rd3 $2 {[%emt 0:00:13][%mdl 8192]} (27. Ne5 $1 $15 Bb4 28. Qxe3 Bxd1 29. Rxd1) 27... e2 $2 {[%emt 0:00:07]} (27... Bb4 $19 {has better winning chances.} 28. Qc2 Qe4) 28. Re1 $2 {[%emt 0:00:01][%mdl 8192]} (28. Bxa3 $17 Qxa3+ 29. Kb1) 28... Bb4 {[%emt 0:00:05]} 29. Rxe2 {[%emt 0:00:21]} Bxc3 {[%emt 0:00:09] This pair of bishops is nice.} 30. Rxe7 {[%emt 0:00:02]} Bxb2+ {[%emt 0:00:02]} ({Weaker is} 30... Rxe7 31. Bxc3 Nd7 32. Ne5 Nxe5 33. fxe5 $17) 31. Kxb2 {[%emt 0:00:01]} Rxe7 {[%emt 0:00:03]} 32. Ne5 {[%emt 0:00:01]} Bc8 $2 {[%emt 0:00:09]} (32... Reg7 33. Rg3 c5) 33. a4 $2 {[%emt 0:00:02]} (33. Nec6+ bxc6 34. Nxc6+ Kb7 35. Nxe7 Rg2+ 36. Kc3) 33... Nd7 $2 {[%emt 0:00:04]} (33... Rg2+ 34. Ka3 Reg7) 34. Ndf3 $2 {[%emt 0:00:05]} (34. Ndc6+ bxc6 35. Nxc6+ Kb7 36. Nxe7) 34... Rg3 {[%emt 0:00:07]} 35. Nxd7+ {[%emt 0:00:03]} Rxd7 {[%emt 0:00:05]} 36. Re3 {[%emt 0:00:01]} Rg2+ {[%emt 0:00:02]} 37. Kc3 {[%emt 0:00:01]} Rg3 $2 {[%emt 0:00:07]} (37... Rf7 $19 38. Ne1 Rh2) 38. c5 $2 {[%emt 0:00:04][%mdl 8192]} (38. Kb2 $11 Rf7 39. Rc3) 38... b6 {[%emt 0:00:02]} 39. c6 {[%emt 0:00:01]} Rd6 {[%emt 0:00:03][%cal Od6d8] Strongly threatening ...Rd8!} 40. b4 {[%emt 0:00:04]} Rxc6+ {[%emt 0:00:05]} 41. Kd4 {[%emt 0:00:00]} Rd6+ {[%emt 0:00:05]} 42. Kc4 {[%emt 0:00:05]} Bb7 $2 {[%emt 0:00:02]} (42... Be6+ $19 43. Rxe6 Rxe6) 43. Re8+ $11 {[%emt 0:00:02]} Bc8 {[%emt 0:00:03]} 44. Ne5 {[%emt 0:00:01][%mdl 8192]} (44. Re3 $11 Be6+ 45. Rxe6 Rxe6 46. f5) 44... Kb7 $19 {[%emt 0:00:07] ( -> ...Bh3)} 45. Rf8 {[%emt 0:00:02]} Rh3 {[%emt 0:00:05]} (45... Be6+ $142 46. Kb5 a6#) 46. b5 {[%emt 0:00:02]} Rxh4 {[%emt 0:00:07]} (46... Be6+ $142 47. Kb4 Rb3#) 47. Nc6 {[%emt 0:00:01]} Be6+ {[%emt 0:00:05]} 48. Kc3 {[%emt 0:00:03]} Rh3+ {[%emt 0:00:01]} 49. Kc2 {[%emt 0:00:00]} Ra3 $4 {[%emt 0:00:05][%mdl 8192] [#]} (49... Bb3+ {and life is good for Black.} 50. Kc1 Rd1+ 51. Kb2 Rd2+ 52. Kc1 Rc2+ 53. Kd1 Rh1#) 50. Rb8# {[%emt 0:00:49] Weighted Error Value: White=1.43/Black=1.17} 1-0